fUST/lending_fUST_20250725
["ID","MTS","AMOUNT","RATE_DAILY","PERIOD"]
[374652423,1753401048172,-460.0,0.00018925,2]
[374652424,1753401048182,-460.0,0.00018925,2]
[374652425,1753401048193,-1607.54,0.00018925,2]
[374652426,1753401048202,-690.56,0.00018925,2]
[374652427,1753401048211,-2311.21,0.00018925,2]
[374652428,1753401048221,-460.0,0.00018925,2]
[374652429,1753401048230,-808.62,0.00018925,2]
[374652430,1753401048240,-460.0,0.00018925,2]
[374652431,1753401048249,-586.24,0.00018925,2]
[374652432,1753401048258,-510.83,0.00018925,2]
[374652433,1753401048267,-2348.62,0.00018925,2]
[374652434,1753401048276,-802.59,0.00018925,2]
[374652435,1753401048286,-1028.98,0.00018925,2]
[374652436,1753401048295,-587.76,0.00018925,2]
[374652437,1753401048309,-462.35587766,0.00018925,2]
[374652438,1753401048318,-460.0,0.00018925,2]
[374652439,1753401048328,-460.0,0.00018925,2]
[374652440,1753401048337,-460.0,0.00018925,2]
[374652441,1753401048346,-3301.72,0.00018925,2]
[374652442,1753401048355,-494.9,0.00018925,2]
[374652443,1753401048364,-460.0,0.00018925,2]
[374652444,1753401048374,-460.0,0.00018925,2]
[374652445,1753401048383,-460.0,0.00018925,2]
[374652446,1753401048394,-3295.04,0.00018925,2]
[374652447,1753401048403,-460.0,0.00018925,2]
[374652448,1753401048412,-341.78521337,0.00018925,2]
[374652449,1753401048422,-460.0,0.00018925,2]
[374652450,1753401048432,-460.0,0.00018925,2]
[374652451,1753401048443,-887.29,0.00018925,2]
[374652452,1753401048453,-2315.49,0.00018925,2]
[374652453,1753401048463,-460.0,0.00018925,2]
[374652454,1753401048472,-460.0,0.00018925,2]
[374652455,1753401048482,-460.0,0.00018925,2]
[374652456,1753401048491,-2762.88,0.00018925,2]
[374652457,1753401048501,-460.0,0.00018925,2]
[374652458,1753401048513,-460.0,0.00018926,2]
[374652459,1753401048523,-460.0,0.00018926,2]
[374652460,1753401048531,-460.0,0.00018926,2]
[374652461,1753401048541,-460.0,0.00018926,2]
[374652462,1753401048551,-460.0,0.00018926,2]
[374652463,1753401048561,-460.0,0.00018926,2]
[374652464,1753401048570,-716.83,0.00018926,2]
[374652465,1753401048579,-460.0,0.00018926,2]
[374652466,1753401048589,-460.0,0.00018926,2]
[374652467,1753401048599,-664.19,0.00018926,2]
[374652468,1753401048609,-755.41,0.00018926,2]
[374652469,1753401048619,-460.0,0.00018926,2]
[374652470,1753401048628,-460.0,0.00018926,2]
[374652471,1753401048637,-461.25543892,0.00018926,2]
[374652472,1753401048649,-462.32567198,0.00018926,2]
[374652473,1753401048659,-460.0,0.00018926,2]
[374652474,1753401048669,-460.0,0.00018926,2]
[374652475,1753401048678,-460.0,0.00018926,2]
[374652476,1753401048687,-460.0,0.00018926,2]
[374652477,1753401048697,-460.0,0.00018926,2]
[374652478,1753401048706,-460.0,0.00018926,2]
[374652479,1753401048715,-460.0,0.00018926,2]
[374652480,1753401048725,-460.0,0.00018926,2]
[374652481,1753401048735,-460.0,0.00018926,2]
[374652482,1753401048745,-460.0,0.00018926,2]
[374652483,1753401048754,-460.0,0.00018926,2]
[374652484,1753401048764,-460.0,0.00018926,2]
[374652485,1753401048773,-460.0,0.00018926,2]
[374652486,1753401048782,-460.0,0.00018926,2]
[374652487,1753401048792,-460.0,0.00018926,2]
[374652488,1753401048802,-460.0,0.00018926,2]
[374652489,1753401048811,-460.0,0.00018926,2]
[374652490,1753401048821,-538.52697086,0.00018926,2]
[374652491,1753401048830,-460.0,0.00018926,2]
[374652492,1753401048840,-460.0,0.00018926,2]
[374652493,1753401048849,-215.23914893,0.00018926,2]
[374652494,1753401048859,-460.0,0.00018926,2]
[374652495,1753401048868,-460.0,0.00018926,2]
[374652496,1753401048878,-500.0,0.00018926,2]
[374652497,1753401048887,-495.91,0.00018926,2]
[374652498,1753401048899,-460.0,0.00018926,2]
[374652499,1753401048908,-460.0,0.00018926,2]
[374652500,1753401048918,-460.0,0.00018926,2]
[374652501,1753401048928,-460.0,0.00018926,2]
[374652502,1753401048938,-460.0,0.00018926,2]
[374652503,1753401048947,-808.56,0.00018926,2]
[374652504,1753401048956,-460.0,0.00018926,2]
[374652505,1753401048966,-460.0,0.00018926,2]
[374652506,1753401048975,-460.0,0.00018926,2]
[374652507,1753401048985,-460.0,0.00018926,2]
[374652508,1753401048995,-460.0,0.00018926,2]
[374652509,1753401049004,-462.26785164,0.00018926,2]
[374652510,1753401049014,-460.0,0.00018926,2]
[374652511,1753401049023,-460.0,0.00018926,2]
[374652512,1753401049033,-460.0,0.00018926,2]
[374652513,1753401049042,-460.0,0.00018926,2]
[374652514,1753401049052,-460.0,0.00018926,2]
[374652515,1753401049061,-460.0,0.00018926,2]
[374652516,1753401049071,-1091.91,0.00018926,2]
[374652517,1753401049080,-1116.56,0.00018926,2]
[374652518,1753401049091,-1524.73887318,0.00018945,2]
[374652519,1753401049100,-500.0,0.00018973,2]
[374652520,1753401049110,-500.0,0.00018973,2]
[374652521,1753401049119,-500.0,0.00018973,2]
[374652522,1753401049204,-500.0,0.00018973,2]
[374652523,1753401049214,-500.0,0.00018973,2]
[374652524,1753401049223,-500.0,0.00018973,2]
[374652525,1753401049233,-511.40600132,0.00018973,2]
[374652526,1753401049243,-500.0,0.00018973,2]
[374652527,1753401049252,-501.89262915,0.00018973,2]
[374652528,1753401049262,-500.0,0.00018973,2]
[374652529,1753401049271,-500.0,0.00018973,2]
[374652530,1753401049281,-500.0,0.00018973,2]
[374652531,1753401049291,-500.0,0.00018973,2]
[374652532,1753401049300,-500.0,0.00018973,2]
[374652533,1753401049310,-500.0,0.00018973,2]
[374652534,1753401049320,-151.0,0.00019,2]
[374652535,1753401049330,-178.204927,0.00019,2]
[374652536,1753401049340,-429.7456075,0.00019,2]
[374652537,1753401049349,-429.6101251,0.00019,2]
[374652538,1753401049359,-724.96208278,0.00019012,2]
[374652539,1753401049369,-1074.0,0.00019024,2]
[374652540,1753401049379,-151.0,0.00019024,2]
[374652541,1753401049389,-246.48917632,0.00019024,2]
[374652542,1753401049400,-151.0,0.00019024,2]
[374652543,1753401049410,-151.0,0.00019024,2]
[374652544,1753401049419,-151.0,0.00019024,2]
[374652545,1753401049429,-280.01323545,0.00019024,2]
[374652546,1753401049442,-151.0,0.00019024,2]
[374652547,1753401049451,-152.621524,0.00019024,2]
[374652548,1753401049461,-460.0,0.00019024,2]
[374652549,1753401049470,-460.0,0.00019024,2]
[374652550,1753401049479,-460.0,0.00019024,2]
[374652551,1753401049489,-460.0,0.00019024,2]
[374652552,1753401049499,-460.0,0.00019024,2]
[374652553,1753401049508,-460.0,0.00019024,2]
[374652554,1753401049518,-460.0,0.00019024,2]
[374652555,1753401049527,-460.0,0.00019024,2]
[374652556,1753401049537,-460.0,0.00019024,2]
[374652557,1753401049547,-460.0,0.00019024,2]
[374652558,1753401049557,-460.0,0.00019024,2]
[374652559,1753401049566,-460.0,0.00019024,2]
[374652560,1753401049576,-672.72,0.00019024,2]
[374652561,1753401049585,-181.40717841,0.00019024,2]
[374652562,1753401049595,-460.0,0.00019024,2]
[374652563,1753401049605,-460.0,0.00019024,2]
[374652564,1753401049615,-152.54978935,0.00019024,2]
[374652565,1753401049625,-151.0,0.00019024,2]
[374652566,1753401049635,-151.0,0.00019024,2]
[374652567,1753401049644,-151.0,0.00019024,2]
[374652568,1753401049653,-460.0,0.00019024,2]
[374652569,1753401049663,-981.0,0.00019024,2]
[374652570,1753401049672,-500.0,0.00019024,2]
[374652571,1753401049682,-151.0,0.00019024,2]
[374652572,1753401049691,-500.0,0.00019024,2]
[374652573,1753401049700,-152.79228163,0.00019024,2]
[374652574,1753401049709,-460.0,0.00019025,2]
[374652575,1753401049719,-338.72069552,0.00019025,2]
[374652576,1753401049728,-460.0,0.00019025,2]
[374652577,1753401049738,-460.0,0.00019025,2]
[374652578,1753401049747,-460.0,0.00019026,2]
[374652579,1753401049757,-463.50686102,0.00019026,2]
[374652580,1753401049767,-460.0,0.00019026,2]
[374652581,1753401049777,-464.55389216,0.00019026,2]
[374652582,1753401049786,-460.0,0.00019026,2]
[374652583,1753401049796,-460.0,0.00019026,2]
[374652584,1753401049806,-460.0,0.00019026,2]
[374652585,1753401049815,-460.0,0.00019026,2]
[374652586,1753401049825,-460.0,0.00019026,2]
[374652587,1753401049835,-460.2,0.00019026,2]
[374652588,1753401049844,-211.201632,0.00019026,2]
[374652589,1753401049853,-151.0,0.00019026,2]
[374652590,1753401049862,-151.0,0.00019026,2]
[374652591,1753401049872,-151.0,0.00019026,2]
[374652592,1753401049882,-151.0,0.00019026,2]
[374652593,1753401049893,-151.0,0.00019026,2]
[374652594,1753401049903,-151.0,0.00019026,2]
[374652595,1753401049912,-151.0,0.00019026,2]
[374652596,1753401049922,-508.0,0.00019037,2]
[374652597,1753401049932,-1134.40042635,0.00019089,2]
[374652598,1753401049941,-460.0,0.00019091,2]
[374652599,1753401049951,-460.0,0.00019091,2]
[374652600,1753401049961,-590.39,0.00019091,2]
[374652601,1753401049971,-460.0,0.00019091,2]
[374652602,1753401049983,-460.0,0.00019091,2]
[374652603,1753401049993,-702.6,0.00019091,2]
[374652604,1753401050003,-2406.45,0.00019091,2]
[374652605,1753401050012,-478.79,0.00019091,2]
[374652606,1753401050022,-460.0,0.00019091,2]
[374652607,1753401050032,-745.75,0.00019091,2]
[374652608,1753401050042,-460.0,0.00019093,2]
[374652609,1753401050052,-707.67,0.00019093,2]
[374652610,1753401050061,-460.0,0.00019093,2]
[374652611,1753401050071,-460.0,0.00019093,2]
[374652612,1753401050082,-460.0,0.00019093,2]
[374652613,1753401050092,-460.0,0.00019093,2]
[374652614,1753401050101,-7096.14,0.00019093,2]
[374652615,1753401050111,-460.0,0.00019093,2]
[374652616,1753401050121,-3528.52,0.00019093,2]
[374652617,1753401050131,-460.0,0.00019093,2]
[374652618,1753401050140,-460.0,0.00019093,2]
[374652619,1753401050151,-460.0,0.00019093,2]
[374652620,1753401050161,-997.71,0.00019093,2]
[374652621,1753401050172,-460.0,0.00019093,2]
[374652622,1753401050182,-810.51,0.00019093,2]
[374652623,1753401050192,-460.0,0.00019093,2]
[374652624,1753401050202,-3531.67,0.00019093,2]
[374652625,1753401050212,-3121.86,0.00019093,2]
[374652626,1753401050222,-522.06,0.00019093,2]
[374652627,1753401050232,-875.44,0.00019093,2]
[374652628,1753401050241,-460.0,0.00019093,2]
[374652629,1753401050251,-2551.42,0.00019093,2]
[374652630,1753401050260,-460.0,0.00019093,2]
[374652631,1753401050270,-1053.69,0.00019093,2]
[374652632,1753401050279,-460.0,0.00019093,2]
[374652633,1753401050289,-460.0,0.00019093,2]
[374652634,1753401050299,-460.0,0.00019094,2]
[374652635,1753401050309,-460.0,0.00019094,2]
[374652636,1753401050319,-460.0,0.00019094,2]
[374652637,1753401050329,-460.0,0.00019094,2]
[374652638,1753401050339,-460.0,0.00019094,2]
[374652639,1753401050349,-460.0,0.00019095,2]
[374652640,1753401050358,-460.0,0.00019095,2]
[374652641,1753401050368,-460.0,0.00019095,2]
[374652642,1753401050377,-460.0,0.00019095,2]
[374652643,1753401050386,-460.0,0.00019095,2]
[374652644,1753401050396,-460.0,0.00019095,2]
[374652645,1753401050406,-460.0,0.00019095,2]
[374652646,1753401050416,-290.78393118,0.00019095,2]
[374652647,1753401050426,-460.0,0.00019095,2]
[374652648,1753401050439,-460.0,0.00019095,2]
[374652649,1753401050448,-462.40869431,0.00019095,2]
[374652650,1753401050526,-776.37,0.00019095,2]
[374652651,1753401050538,-460.0,0.00019095,2]
[374652652,1753401050547,-619.26,0.00019095,2]
[374652653,1753401050557,-224.038964,0.00019095,2]
[374652654,1753401050566,-460.0,0.00019095,2]
[374652655,1753401050576,-460.0,0.00019095,2]
[374652656,1753401050585,-151.0,0.00019095,2]
[374652657,1753401050595,-986.71,0.00019095,2]
[374652658,1753401050606,-460.0,0.00019095,2]
[374652659,1753401050617,-649.44,0.00019095,2]
[374652660,1753401050627,-460.0,0.00019095,2]
[374652661,1753401050637,-911.22,0.00019095,2]
[374652662,1753401050648,-779.76,0.00019095,2]
[374652663,1753401050657,-1391.18,0.00019095,2]
[374652664,1753401050667,-460.0,0.00019095,2]
[374652665,1753401050677,-460.0,0.00019095,2]
[374652666,1753401050687,-460.0,0.00019095,2]
[374652667,1753401050696,-787.16,0.00019095,2]
[374652668,1753401050706,-460.0,0.00019095,2]
[374652669,1753401050715,-2617.62,0.00019095,2]
[374652670,1753401050725,-460.0,0.00019095,2]
[374652671,1753401050743,-460.0,0.00019095,2]
[374652672,1753401050754,-460.0,0.00019095,2]
[374652673,1753401050764,-454.00162627,0.00019095,2]
[374652674,1753401050774,-1095.41,0.00019095,2]
[374652675,1753401050783,-552.46,0.00019095,2]
[374652676,1753401050793,-460.0,0.00019095,2]
[374652677,1753401050803,-460.0,0.00019095,2]
[374652678,1753401050812,-465.25,0.00019095,2]
[374652679,1753401050822,-1183.67,0.00019095,2]
[374652680,1753401050832,-1440.29,0.00019095,2]
[374652681,1753401050842,-460.0,0.00019095,2]
[374652682,1753401050852,-317.47886199,0.00019095,2]
[374652683,1753401050862,-738.66,0.00019095,2]
[374652684,1753401050871,-460.0,0.00019095,2]
[374652685,1753401050881,-460.0,0.00019095,2]
[374652686,1753401050891,-460.0,0.00019095,2]
[374652687,1753401050902,-460.0,0.00019095,2]
[374652688,1753401050912,-460.0,0.00019095,2]
[374652689,1753401050922,-460.0,0.00019095,2]
[374652690,1753401050931,-460.0,0.00019095,2]
[374652691,1753401050940,-460.0,0.00019095,2]
[374652692,1753401050949,-460.0,0.00019095,2]
[374652693,1753401050959,-503.11,0.00019095,2]
[374652694,1753401050969,-460.0,0.00019095,2]
[374652695,1753401050978,-738.2,0.00019095,2]
[374652696,1753401050988,-460.0,0.00019095,2]
[374652697,1753401050998,-532.71,0.00019095,2]
[374652698,1753401051007,-460.0,0.00019095,2]
[374652699,1753401051017,-462.77754344,0.00019096,2]
[374652700,1753401051026,-460.0,0.00019096,2]
[374652701,1753401051036,-562.72162882,0.00019098,2]
[374652702,1753401051046,-460.0,0.00019098,2]
[374652703,1753401051055,-683.84,0.00019098,2]
[374652704,1753401051065,-460.0,0.00019098,2]
[374652705,1753401051075,-460.0,0.00019098,2]
[374652706,1753401051084,-460.0,0.00019098,2]
[374652707,1753401051094,-151.0,0.00019098,2]
[374652708,1753401051104,-188.465792,0.00019098,2]
[374652709,1753401051113,-151.0,0.00019098,2]
[374652710,1753401051123,-151.0,0.00019098,2]
[374652711,1753401051132,-217.669127,0.00019098,2]
[374652712,1753401051142,-217.669127,0.00019098,2]
[374652713,1753401051151,-231.456694,0.00019098,2]
[374652714,1753401051161,-231.456694,0.00019098,2]
[374652715,1753401051170,-467.827508,0.00019098,2]
[374652716,1753401051180,-467.827508,0.00019098,2]
[374652717,1753401051190,-460.0,0.00019098,2]
[374652718,1753401051199,-270.119134,0.00019098,2]
[374652719,1753401051209,-270.119134,0.00019098,2]
[374652720,1753401051218,-227.064974,0.00019098,2]
[374652721,1753401051228,-227.064974,0.00019098,2]
[374652722,1753401051237,-1556.96,0.00019098,2]
[374652723,1753401051247,-1197.85,0.00019098,2]
[374652724,1753401051257,-517.5,0.00019098,2]
[374652725,1753401051267,-460.0,0.00019098,2]
[374652726,1753401051276,-554.23,0.00019098,2]
[374652727,1753401051285,-517.221489,0.00019098,2]
[374652728,1753401051295,-517.221489,0.00019098,2]
[374652729,1753401051306,-976.57,0.00019098,2]
[374652730,1753401051315,-823.75,0.00019098,2]
[374652731,1753401051325,-1147.02,0.00019098,2]
[374652732,1753401051335,-577.94,0.00019098,2]
[374652733,1753401051345,-1434.4,0.00019098,2]
[374652734,1753401051355,-6244.15,0.00019098,2]
[374652735,1753401051365,-460.0,0.00019098,2]
[374652736,1753401051374,-151.0,0.000191,2]
[374652737,1753401051384,-1524.73887318,0.00019144,2]
[374652738,1753401051394,-5000.0,0.00019178,2]
[374652739,1753401051404,-232.200832,0.00019178,2]
[374652740,1753401051413,-462.36033899,0.00019197,2]
[374652741,1753401051423,-460.0,0.00019197,2]
[374652742,1753401051434,-393.94165669,0.00019197,2]
[374652743,1753401051444,-501.22437407,0.00019197,2]
[374652744,1753401051454,-460.0,0.00019197,2]
[374652745,1753401051463,-460.0,0.00019197,2]
[374652746,1753401051473,-460.0,0.00019197,2]
[374652747,1753401051483,-662.7,0.00019197,2]
[374652748,1753401051492,-460.0,0.00019197,2]
[374652749,1753401051502,-460.0,0.00019197,2]
[374652750,1753401051511,-460.0,0.00019197,2]
[374652751,1753401051521,-460.0,0.00019197,2]
[374652752,1753401051531,-460.0,0.00019197,2]
[374652753,1753401051541,-460.0,0.00019197,2]
[374652754,1753401051551,-737.78,0.00019197,2]
[374652755,1753401051561,-699.99,0.00019197,2]
[374652756,1753401051571,-460.0,0.00019197,2]
[374652757,1753401051581,-460.0,0.00019197,2]
[374652758,1753401051590,-460.0,0.00019197,2]
[374652759,1753401051600,-461.12187968,0.00019197,2]
[374652760,1753401051609,-934.84,0.00019197,2]
[374652761,1753401051618,-460.0,0.00019197,2]
[374652762,1753401051628,-151.0,0.00019197,2]
[374652763,1753401051638,-151.0,0.00019197,2]
[374652764,1753401051648,-151.0,0.00019197,2]
[374652765,1753401051657,-460.0,0.00019197,2]
[374652766,1753401051667,-1052.61,0.00019197,2]
[374652767,1753401051676,-460.0,0.00019197,2]
[374652768,1753401051689,-467.13,0.00019197,2]
[374652769,1753401051768,-460.0,0.00019197,2]
[374652770,1753401051778,-704.04,0.00019197,2]
[374652771,1753401051789,-460.0,0.00019197,2]
[374652772,1753401051799,-743.92,0.00019197,2]
[374652773,1753401051809,-961.48,0.00019197,2]
[374652774,1753401051818,-460.0,0.00019197,2]
[374652775,1753401051828,-460.0,0.00019197,2]
[374652776,1753401051837,-177.705526,0.00019197,2]
[374652777,1753401051847,-756.95,0.00019197,2]
[374652778,1753401051856,-460.0,0.00019197,2]
[374652779,1753401051866,-460.0,0.00019197,2]
[374652780,1753401051876,-460.0,0.00019197,2]
[374652781,1753401051885,-1291.86,0.00019197,2]
[374652782,1753401051896,-460.0,0.00019197,2]
[374652783,1753401051905,-468.87214064,0.00019197,2]
[374652784,1753401051915,-460.0,0.00019197,2]
[374652785,1753401051925,-460.0,0.00019197,2]
[374652786,1753401051935,-460.0,0.00019197,2]
[374652787,1753401051944,-460.0,0.00019197,2]
[374652788,1753401051953,-1267.48,0.00019197,2]
[374652789,1753401051963,-460.0,0.00019197,2]
[374652790,1753401051972,-460.0,0.00019197,2]
[374652791,1753401051982,-460.0,0.00019197,2]
[374652792,1753401051991,-460.0,0.00019197,2]
[374652793,1753401052001,-460.0,0.00019197,2]
[374652794,1753401052010,-560.33,0.00019197,2]
[374652795,1753401052020,-460.0,0.00019197,2]
[374652796,1753401052029,-460.0,0.00019197,2]
[374652797,1753401052039,-460.0,0.00019197,2]
[374652798,1753401052048,-460.0,0.00019197,2]
[374652799,1753401052058,-460.0,0.00019197,2]
[374652800,1753401052067,-591.04,0.00019197,2]
[374652801,1753401052078,-460.0,0.00019197,2]
[374652802,1753401052087,-465.60802618,0.00019197,2]
[374652803,1753401052096,-537.65,0.00019197,2]
[374652804,1753401052106,-572.48,0.00019197,2]
[374652805,1753401052115,-460.0,0.00019197,2]
[374652806,1753401052125,-483.29,0.00019197,2]
[374652807,1753401052135,-460.0,0.00019197,2]
[374652808,1753401052146,-1230.85,0.00019197,2]
[374652809,1753401052156,-1112.94,0.00019197,2]
[374652810,1753401052165,-460.0,0.00019197,2]
[374652811,1753401052175,-460.0,0.00019197,2]
[374652812,1753401052185,-538.59,0.00019197,2]
[374652813,1753401052194,-460.0,0.00019197,2]
[374652814,1753401052204,-650.3,0.00019197,2]
[374652815,1753401052213,-460.0,0.00019197,2]
[374652816,1753401052223,-460.0,0.00019197,2]
[374652817,1753401052232,-460.0,0.00019197,2]
[374652818,1753401052242,-526.80176444,0.00019197,2]
[374652819,1753401052251,-460.0,0.00019197,2]
[374652820,1753401052261,-460.0,0.00019197,2]
[374652821,1753401052270,-460.0,0.00019197,2]
[374652822,1753401052280,-468.15342368,0.00019197,2]
[374652823,1753401052289,-151.0,0.00019198,2]
[374652824,1753401052299,-1210.61,0.00019198,2]
[374652825,1753401052319,-3833.04,0.00019198,2]
[374652826,1753401052336,-3180.14,0.00019198,2]
[374652827,1753401052354,-460.0,0.00019198,2]
[374652828,1753401052372,-460.0,0.00019199,2]
[374652829,1753401052386,-445.98079867,0.00019199,2]
[374652830,1753401052407,-286.75372124,0.00019199,2]
[374652831,1753401052425,-151.0,0.00019199,2]
[374652832,1753401052443,-151.0,0.00019199,2]
[374652833,1753401052462,-151.0,0.00019199,2]
[374652834,1753401052479,-1840.34,0.00019199,2]
[374652835,1753401052499,-460.0,0.00019199,2]
[374652836,1753401052514,-542.68,0.00019199,2]
[374652837,1753401052531,-460.0,0.00019199,2]
[374652838,1753401052547,-460.0,0.00019199,2]
[374652839,1753401052561,-836.45,0.00019199,2]
[374652840,1753401052575,-460.0,0.00019199,2]
[374652841,1753401052590,-460.0,0.00019199,2]
[374652842,1753401052605,-460.0,0.00019199,2]
[374652843,1753401052619,-605.21,0.00019199,2]
[374652844,1753401052633,-460.0,0.00019199,2]
[374652845,1753401052648,-1607.54,0.00019199,2]
[374652846,1753401052662,-690.56,0.00019199,2]
[374652847,1753401052677,-2311.21,0.00019199,2]
[374652848,1753401052692,-460.0,0.00019199,2]
[374652849,1753401052706,-808.62,0.00019199,2]
[374652850,1753401052720,-460.0,0.00019199,2]
[374652851,1753401052735,-586.24,0.00019199,2]
[374652852,1753401052749,-510.83,0.00019199,2]
[374652853,1753401052763,-2348.62,0.00019199,2]
[374652854,1753401052777,-802.59,0.00019199,2]
[374652855,1753401052792,-1028.98,0.00019199,2]
[374652856,1753401052808,-587.76,0.00019199,2]
[374652857,1753401052822,-473.14714418,0.00019199,2]
[374652858,1753401052837,-151.0,0.00019199,2]
[374652859,1753401052852,-460.0,0.00019199,2]
[374652860,1753401052866,-460.0,0.00019199,2]
[374652861,1753401052880,-3301.72,0.00019199,2]
[374652862,1753401052898,-494.9,0.00019199,2]
[374652863,1753401052913,-460.0,0.00019199,2]
[374652864,1753401052928,-151.0,0.00019199,2]
[374652865,1753401052943,-460.0,0.00019199,2]
[374652866,1753401052958,-460.0,0.00019199,2]
[374652867,1753401052973,-3295.04,0.00019199,2]
[374652868,1753401052987,-460.0,0.00019199,2]
[374652869,1753401053002,-252.225551,0.00019199,2]
[374652870,1753401053018,-460.0,0.00019199,2]
[374652871,1753401053032,-460.0,0.00019199,2]
[374652872,1753401053046,-151.0,0.00019199,2]
[374652873,1753401053061,-151.0,0.00019199,2]
[374652874,1753401053076,-887.29,0.00019199,2]
[374652875,1753401053090,-2315.49,0.00019199,2]
[374652876,1753401053105,-460.0,0.00019199,2]
[374652877,1753401053119,-460.0,0.00019199,2]
[374652878,1753401053233,-151.0,0.00019199,2]
[374652879,1753401053254,-151.0,0.00019199,2]
[374652880,1753401053265,-460.0,0.00019199,2]
[374652881,1753401053277,-2762.88,0.00019199,2]
[374652882,1753401053288,-460.0,0.00019199,2]
[374652883,1753401053299,-191.8188262,0.000192,2]
[374652884,1753401053310,-460.0,0.000192,2]
[374652885,1753401053321,-460.0,0.000192,2]
[374652886,1753401053333,-151.0,0.000192,2]
[374652887,1753401053343,-463.20660066,0.000192,2]
[374652888,1753401053353,-716.83,0.000192,2]
[374652889,1753401053364,-460.0,0.000192,2]
[374652890,1753401053375,-460.0,0.000192,2]
[374652891,1753401053385,-151.0,0.000192,2]
[374652892,1753401053396,-664.19,0.000192,2]
[374652893,1753401053406,-755.41,0.000192,2]
[374652894,1753401053415,-170.883882,0.000192,2]
[374652895,1753401053425,-460.0,0.000192,2]
[374652896,1753401053437,-460.0,0.000192,2]
[374652897,1753401053447,-460.0,0.000192,2]
[374652898,1753401053456,-460.0,0.000192,2]
[374652899,1753401053466,-460.0,0.000192,2]
[374652900,1753401053476,-584.72537457,0.000192,2]
[374652901,1753401053485,-460.0,0.000192,2]
[374652902,1753401053495,-460.0,0.000192,2]
[374652903,1753401053506,-460.0,0.000192,2]
[374652904,1753401053515,-460.0,0.000192,2]
[374652905,1753401053526,-460.0,0.000192,2]
[374652906,1753401053536,-460.0,0.000192,2]
[374652907,1753401053545,-460.0,0.000192,2]
[374652908,1753401053555,-460.0,0.000192,2]
[374652909,1753401053564,-460.0,0.000192,2]
[374652910,1753401053574,-500.0,0.000192,2]
[374652911,1753401053583,-495.91,0.000192,2]
[374652912,1753401053593,-154.39640782,0.000192,2]
[374652913,1753401053602,-460.0,0.000192,2]
[374652914,1753401053612,-460.0,0.000192,2]
[374652915,1753401053621,-460.0,0.000192,2]
[374652916,1753401053631,-808.56,0.000192,2]
[374652917,1753401053640,-460.0,0.000192,2]
[374652918,1753401053651,-460.0,0.000192,2]
[374652919,1753401053661,-597.62642703,0.000192,2]
[374652920,1753401053670,-460.0,0.000192,2]
[374652921,1753401053679,-460.0,0.000192,2]
[374652922,1753401053689,-460.0,0.000192,2]